Cogmind - Beta 15 @@@ ROGUE MODE // 2025.05.11 @ 23:29:09 Player: Cogchaaaan Result: Destroyed by Hotshot with Improved Heavy Laser Performance ------------- Evolutions (8) 4000 Regions Visited (30) 6000 Robots Destroyed (220) 1100 Value Destroyed (6704) 6704 Prototype IDs (107) 2140 Alien Tech Used (5) 1000 Bonus (5663) 5663 TOTAL SCORE: 26607 Bonus ------- High Alert Combat Kills 119 Follower Combat Kills 277 Registered with UFD 300 Met Optimus in HQ 500 Met Data Miner 300 Met Zhirov 300 Met Warlord at Base 500 MAIN.C Attacked Warlord 500 Warlord Defense Kills 162 Used Core Reset Matrix 3000 Friendly Fire -295 Cogmind --------- Core Integrity 0/1450 Matter 300/300 Energy 209/900 System Corruption 6% Temperature Cool (19) Movement Flying (30) Location -2/Protoforge Parts ------- > --- POWER (2) -------- (None) > --- PROPULSION (8) --- Concept Fieldthrust Drive > --- UTILITY (10) ----- Concept Chromion Battery Advanced Signal Interpreter Femtoactuators Graphene Brace > --- WEAPON (4) ------- (None) > --- INVENTORY (5) ---- Crosscalibrator Terrabomb Potential Cannon Micro-nuke Launcher Peak State ------------ > --- POWER ------------ Micro Antimatter Reactor Light Quantum Reactor > --- PROPULSION ------- Electron Diverter Impulse Thruster Array Experimental Surge Thruster Experimental Surge Thruster Experimental Surge Thruster Experimental Surge Thruster Concept Fieldthrust Drive > --- UTILITY ---------- Large Storage Unit Concept Chromion Battery Structural Scanner Experimental Optical Array Long-range Sensor Array Advanced Signal Interpreter Improved Transmission Jammer Light Regenerative Plating Advanced Hacking Suite Experimental System Shield > --- WEAPON ----------- Potential Cannon > --- INVENTORY -------- Light Antimatter Reactor Matter Compressor Graphene Brace Crosscalibrator Dimensional Node Initializer High-powered Transdimensional Reconstructor Subatomic Replicator Terrabomb Enhanced Nova Cannon Micro-nuke Launcher Experimental Jetlance [Rating: 184] Favorites ----------- Power Deuterium Engine Engine Deuterium Engine Power Core Micro Nuclear Core Reactor Micro Antimatter Reactor Propulsion Armored Treads Treads Armored Treads Leg Aluminum Leg Hover Unit Aerolev Unit Flight Unit Improved VTOL Module Utility High-capacity Storage Unit Device Cooling System Storage High-capacity Storage Unit Processor Advanced Signal Interpreter Hackware Experimental System Shield Protection Light Regenerative Plating Weapon Improved Medium Laser Energy Gun Improved Medium Laser Energy Cannon Advanced Beam Cannon Ballistic Gun Minigun Launcher Long-range Missile Launcher Impact Weapon Heavy Flail Slashing Weapon Axe Piercing Weapon Heavy Pick Build | -11 -10 -10 -9 -9 -8 -8 -8 -8 -6 -6 -6 -6 -6 -6 -5 -5 -5 -5 -5 -4 -4 -4 -4 -4 -3 -3 -3 -2 -2 -2 ------- Run | Yrd Mat Min Mat Min Mat Sto Rec Scr Fac Was Fac Low Low Dat Pro Fac Upp Upp Zhi Pro Fac Upp Upp War Pro Res Tes Res Qua Frg Slots Evolved 16 | . . . 2 . 2 . . . 4 . . . . . . 2 . . . . 2 . . . . 2 . 2 . . Power 1 | . . . . . . . . . . . . . . . . . . . . . 1 . . . . . . . . . Propulsion 6 | . . . 1 . . . . . 2 . . . . . . 1 . . . . . . . . . 1 . 1 . . Utility 8 | . . . . . 2 . . . 2 . . . . . . 1 . . . . 1 . . . . 1 . 1 . . Weapon 1 | . . . 1 . . . . . . . . . . . . . . . . . . . . . . . . . . . Parts Attached 184 | 8 13 6 20 1 25 15 2 5 15 . 2 2 . . . 12 1 . 1 . 8 2 1 7 2 3 3 11 3 16 Power 27 | 1 4 1 2 . 4 1 . 1 1 . . . . . . 3 . . . . 1 . 1 . 1 1 . 1 . 4 Engine 15 | 1 4 . 2 . 4 1 . 1 1 . . . . . . . . . . . . . 1 . . . . . . . Core 7 | . . 1 . . . . . . . . . . . . . 3 . . . . 1 . . . 1 . . . . 1 Reactor 5 | . . . . . . . . . . . . . . . . . . . . . . . . . . 1 . 1 . 3 Propulsion 50 | 2 4 2 9 . 6 5 . 1 4 . . . . . . 1 . . . . . . . 2 1 2 1 2 1 7 Treads 18 | . . 2 9 . 5 1 . 1 . . . . . . . . . . . . . . . . . . . . . . Leg 7 | 2 4 . . . . 1 . . . . . . . . . . . . . . . . . . . . . . . . Wheel . | . . . . . . . . . . . . . . . . . . . . . . . . . . . . . . . Hover 2 | . . . . . 1 . . . . . . . . . . . . . . . . . . 1 . . . . . . Flight 23 | . . . . . . 3 . . 4 . . . . . . 1 . . . . . . . 1 1 2 1 2 1 7 Utility 61 | 2 3 2 3 . 5 2 2 3 8 . 2 1 . . . 7 1 . 1 . 6 . . 2 . . 2 5 1 3 Device 34 | 1 1 1 1 . 3 . 1 1 4 . 1 1 . . . 4 1 . . . 5 . . 2 . . 1 4 . 2 Storage 9 | 1 1 . 2 . . . . . 1 . . . . . . . . . 1 . . . . . . . 1 1 . 1 Processor 8 | . . . . . 2 1 . 2 1 . 1 . . . . . . . . . . . . . . . . . 1 . Hackware 3 | . . . . . . . 1 . . . . . . . . 1 . . . . 1 . . . . . . . . . Protection 7 | . 1 1 . . . 1 . . 2 . . . . . . 2 . . . . . . . . . . . . . . Artifact . | . . . . . . . . . . . . . . . . . . . . . . . . . . . . . . . Weapon 46 | 3 2 1 6 1 10 7 . . 2 . . 1 . . . 1 . . . . 1 2 . 3 . . . 3 1 2 Energy Gun 11 | 1 . . 5 1 2 2 . . . . . . . . . . . . . . . . . . . . . . . . Energy Cannon 16 | . . . . . 7 3 . . . . . . . . . 1 . . . . . 1 . 2 . . . 1 1 . Ballistic Gun 7 | 2 2 1 . . 1 1 . . . . . . . . . . . . . . . . . . . . . . . . Ballistic Cannon . | . . . . . . . . . . . . . . . . . . . . . . . . . . . . . . . Launcher 4 | . . . . . . 1 . . . . . 1 . . . . . . . . . . . 1 . . . 1 . . Special Weapon . | . . . . . . . . . . . . . . . . . . . . . . . . . . . . . . . Impact Weapon 1 | . . . . . . . . . . . . . . . . . . . . . 1 . . . . . . . . . Slashing Weapon 5 | . . . 1 . . . . . 1 . . . . . . . . . . . . 1 . . . . . 1 . 1 Piercing Weapon 2 | . . . . . . . . . 1 . . . . . . . . . . . . . . . . . . . . 1 Special Melee Weapon . | . . . . . . . . . . . . . . . . . . . . . . . . . . . . . . . Unidentified Prototypes 35 | . . 1 4 . 3 8 . . . . . . . . . 2 . . 2 . . . 1 4 . 2 1 . 4 3 Corrupted Parts 1 | . . . . . . . 1 . . . . . . . . . . . . . . . . . . . . . . . System Corruption 4 | . . . . . . . 4 . . . . . . . . . . . . . . . . . . . . . . . Parts Lost 42 | . 4 . . . 6 3 1 . . . . . . . . 4 . . . . . . . . . . . 2 . 22 Power 11 | . 2 . . . 1 1 . . . . . . . . . 2 . . . . . . . . . . . . . 5 Propulsion 11 | . 1 . . . 1 . . . . . . . . . . . . . . . . . . . . . . . . 9 Utility 15 | . 1 . . . 2 1 1 . . . . . . . . 1 . . . . . . . . . . . 2 . 7 Weapon 5 | . . . . . 2 1 . . . . . . . . . 1 . . . . . . . . . . . . . 1 Highest Loss Streak 18 | . 3 . . . 2 1 1 . . . . . . . . 3 . . . . . . . . . . . 2 . 18 To Critical Strikes . | . . . . . . . . . . . . . . . . . . . . . . . . . . . . . . . Average Backups 15 | 2 6 10 18 20 19 19 19 20 10 10 10 9 9 10 10 9 9 9 9 10 8 8 8 9 10 9 11 13 13 11 Power 1 | . . . 1 1 . 1 2 2 1 1 1 1 1 1 1 . 1 1 1 1 . 1 1 1 1 1 1 1 2 1 Propulsion 3 | 1 2 . 2 3 5 6 7 7 2 2 2 2 2 2 2 2 2 2 2 2 1 1 1 1 2 1 1 1 1 . Utility 6 | . 2 7 9 11 8 6 6 6 4 4 5 5 5 5 5 4 5 5 4 5 4 5 5 5 5 5 6 5 3 2 Weapon 3 | . . 1 4 4 4 5 3 3 1 2 2 1 1 2 2 1 1 1 1 2 1 1 1 1 2 1 3 4 3 2 Tool/Special . | . . . . . . . . . . . . . . . . . . . . . . . . . . . . . . . Unused Backups 54 | . 3 . 6 3 12 5 . 3 3 1 2 . . . . 4 . . 1 . 1 . . . . . . . 4 6 Power 3 | . . . . 1 . . . 1 . . . . . . . . . . . . . . . . . . . . . 1 Propulsion 12 | . . . 2 . 5 4 . . . . . . . . . . . . . . . . . . . . . . 1 . Utility 21 | . 2 . . . 7 . . 1 3 . 2 . . . . 2 . . 1 . 1 . . . . . . . 1 1 Weapon 11 | . 1 . 4 1 . 1 . 1 . . . . . . . 1 . . . . . . . . . . . . 2 . Tool/Special 7 | . . . . 1 . . . . . 1 . . . . . 1 . . . . . . . . . . . . . 4 Average Slot Usage (%) 89 | . 99 99 98 100 96 89 87 80 84 86 85 86 86 86 85 76 77 76 77 76 80 84 81 80 80 80 76 78 78 72 Engine 6 | . 13 4 4 11 8 8 9 9 6 6 6 6 6 6 6 . . . . . . . 3 5 5 2 . . . . Core 2 | . . 9 5 . . . . . . . . . . . . 4 5 5 5 5 10 10 6 5 5 4 4 2 . . Treads 18 | . . 19 32 33 26 26 27 26 . . . . . . . . . . . . . . . . . . . . . . Leg 2 | . 27 8 . . . . . . . . . . . . . . . . . . . . . . . . . . . . Flight 7 | . . . . . . . . . 31 33 33 33 33 33 33 28 29 29 29 29 26 26 25 25 25 26 22 25 25 22 Device 13 | . 9 3 10 11 14 18 18 20 13 13 12 13 13 13 13 13 11 11 10 11 10 10 9 10 10 12 12 15 15 14 Storage 8 | . 14 14 11 11 9 9 9 9 6 6 6 6 6 6 6 5 5 5 5 5 5 5 5 5 5 4 4 4 4 5 Processor 5 | . . . . . 9 8 6 6 11 13 13 13 13 13 13 11 11 11 11 11 10 10 10 10 10 9 9 8 8 8 Hackware 1 | . . . . . . . . . . . . . . . . 5 5 5 5 5 9 10 10 10 10 9 9 8 8 7 Protection 2 | . 4 9 . . 2 . . . 5 6 6 6 6 6 6 2 5 5 5 5 5 5 5 5 5 4 4 4 4 2 Energy Gun 7 | . . . 21 22 19 . . . . . . . . . . . . . . . . . . . . . . . . . Energy Cannon 3 | . . . . . 4 18 16 . . . . . . . . . . . 1 . . . . . . . . . . . Ballistic Gun 5 | . 28 28 11 11 . . . . . . . . . . . . . . . . . . . . . . . . . . Slashing Weapon 1 | . . . . . . . . 9 4 . . . . . . . . . . . . 2 5 5 5 4 4 4 4 2 Peak Build Rating 184 | 7 9 15 24 23 37 39 36 39 54 55 54 57 54 49 55 70 76 72 72 76 89 93 93 96 99 122 129 153 168 184 Average Rating 43 | 5 7 13 21 23 30 33 33 36 48 49 49 50 49 49 49 58 65 66 68 67 80 85 86 87 92 109 120 141 150 148 On Entrance 60 | . 7 9 15 23 23 32 35 28 38 49 49 49 49 49 49 49 64 66 66 67 67 83 86 87 86 91 114 125 148 157 Naked Turns . | . . . . . . . . . . . . . . . . . . . . . . . . . . . . . . . Heaviest Build 72 | 12 29 39 58 58 72 62 66 56 24 24 24 24 24 24 24 24 22 22 32 22 32 43 33 31 32 37 47 55 57 60 Greatest Support 70 | 20 20 40 69 69 69 60 60 70 25 25 25 25 25 25 25 33 33 33 33 33 33 33 33 33 35 45 49 59 68 68 Greatest Overweight (x) 2 | 2 1 1 1 . 1 1 1 . . . . . . . . . . . . . . 1 . 1 . . . . . 1 Average Overweight (x) . | . . . . . . . . . . . . . . . . . . . . . . . . . . . . . . . Largest Inventory Capacity 25 | 8 15 15 25 20 20 20 20 20 20 10 10 10 10 10 10 10 10 10 10 10 10 10 10 10 10 10 15 15 15 15 Average Capacity 16 | 7 9 15 19 20 20 20 20 20 10 10 10 10 10 10 10 10 10 10 10 10 10 10 10 10 10 10 14 15 15 13 Most Carried 20 | 3 9 12 20 20 20 20 20 20 20 10 10 10 10 10 10 10 10 10 10 10 10 10 10 10 10 10 15 15 15 15 Average Carried 15 | 2 7 10 18 19 19 19 19 19 10 9 9 9 9 10 9 9 9 9 9 9 9 9 9 9 9 9 12 14 14 12 Final Capacity 20 | 8 15 15 20 20 20 20 20 20 10 10 10 10 10 10 10 10 10 10 10 10 10 10 10 10 10 10 15 15 15 5 Final Carried 20 | 3 9 11 20 20 20 20 20 20 10 10 10 10 10 10 10 10 10 10 10 10 10 10 10 10 10 10 15 14 15 5 Class Distribution -------------------- 41% | Mutant 29% | Gunner 11% | Scout 7% | Hacker-Scout 6% | Hacker-Ninja Dominant Class ---------------- Mutant | -10/Materials Mutant | -10/Mines Gunner | -9/Materials Gunner | -9/Mines Gunner | -8/Materials Mutant | -8/Storage Mutant | -8/Recycling Mutant | -8/Scraptown Scout | -6/Factory Scout | -6/Waste Scout | -6/Factory Scout | -6/Lower Caves Scout | -6/Lower Caves Scout | -6/Data Miner Scout | -5/Proximity Caves Scout | -5/Factory Scout | -5/Upper Caves Scout | -5/Upper Caves Scout | -5/Zhirov Scout | -4/Proximity Caves Hacker-Scout | -4/Factory Hacker-Scout | -4/Upper Caves Hacker-Scout | -4/Upper Caves Hacker-Scout | -4/Warlord Hacker-Scout | -3/Proximity Caves Hacker-Ninja | -3/Research Hacker-Ninja | -3/Testing Hacker-Ninja | -2/Research Hacker-Ninja | -2/Quarantine Hacker-Ninja | -2/Protoforge Resources | -11 -10 -10 -9 -9 -8 -8 -8 -8 -6 -6 -6 -6 -6 -6 -5 -5 -5 -5 -5 -4 -4 -4 -4 -4 -3 -3 -3 -2 -2 -2 ----------- Run | Yrd Mat Min Mat Min Mat Sto Rec Scr Fac Was Fac Low Low Dat Pro Fac Upp Upp Zhi Pro Fac Upp Upp War Pro Res Tes Res Qua Frg Matter Collected 6146 | 277 487 215 659 63 430 323 212 77 47 150 148 162 15 . 109 142 285 125 127 . 326 89 135 195 195 . 46 315 339 453 Remotely . | . . . . . . . . . . . . . . . . . . . . . . . . . . . . . . . Salvage Created 8301 | 104 576 157 1958 93 1634 1631 253 . 47 . 35 95 27 . 13 373 24 . 180 . 110 . . 23 . . 46 186 391 345 Parts 426 | 5 43 12 103 3 63 73 15 . 5 . 3 8 3 . 1 15 6 . 1 . 1 . . 3 . . 3 26 13 21 Haulers Intercepted 16 | . . . 5 . 6 4 . . . . . . . . . . . . . . 1 . . . . . . . . . Recyclers Shooed 13 | . 3 . . . 4 3 . . . . . . . . . 2 . . . . . . . . . . . . 1 . Parts Field Recycled . | . . . . . . . . . . . . . . . . . . . . . . . . . . . . . . . Retrieved Matter . | . . . . . . . . . . . . . . . . . . . . . . . . . . . . . . . Parts Self-Destructed 14 | . . . . . . . . . . . . 4 1 . 1 . 5 2 1 . . . . . . . . . . . Prevented . | . . . . . . . . . . . . . . . . . . . . . . . . . . . . . . . Kills | -11 -10 -10 -9 -9 -8 -8 -8 -8 -6 -6 -6 -6 -6 -6 -5 -5 -5 -5 -5 -4 -4 -4 -4 -4 -3 -3 -3 -2 -2 -2 ------- Run | Yrd Mat Min Mat Min Mat Sto Rec Scr Fac Was Fac Low Low Dat Pro Fac Upp Upp Zhi Pro Fac Upp Upp War Pro Res Tes Res Qua Frg Combat Hostiles Destroyed 157 | . 12 5 32 . 30 26 4 . . . . 7 4 . 1 11 4 . . . . . . 3 . . . 9 . 9 Melee 7 | . . . . . . . . . . . . 1 . . 1 1 . . . . . . . . . . . . . 4 Guns 74 | . 12 5 32 . 25 . . . . . . . . . . . . . . . . . . . . . . . . . Cannons 30 | . . . . . 1 24 4 . . . . . . . . . 1 . . . . . . . . . . . . . AOE 40 | . . . . . . . . . . . . 6 4 . . 10 3 . . . . . . 3 . . . 9 . 5 Classes Destroyed 17 | 2 6 . 3 . 3 . . . . . . . . . 1 . . . . . . . . . . . . . . 2 Worker 4 | . 1 . . . 1 1 . . . . . . . . . . . . . . . . . . . . . 1 . . Builder 8 | . 2 . 1 . . 2 . . . . . . . . . . . . . . . . . . . . . 3 . . Tunneler 2 | 1 . 1 . . . . . . . . . . . . . . . . . . . . . . . . . . . . Hauler 16 | . . . 5 . 6 4 . . . . . . . . . . . . . . 1 . . . . . . . . . Recycler 13 | 1 . . 3 1 2 . 1 . . . . . . . . 2 . . . . . . . . . . . . 3 . Operator 5 | . 1 . 2 . 2 . . . . . . . . . . . . . . . . . . . . . . . . . Drone 5 | . . . . . . . . . . . . . . . 1 . . . . . . . . . . . . . . 4 Watcher 17 | . 2 . 5 . 3 1 . . 2 . 1 . . . . 2 . . . . . . . . . . 1 . . . Swarmer 61 | . 3 3 7 . 7 3 . . . . . 7 4 . . 11 4 . . . . . . 3 . . . 9 . . Grunt 52 | . 9 2 15 . 15 11 . . . . . . . . . . . . . . . . . . . . . . . . Brawler 2 | . . . . . 1 1 . . . . . . . . . . . . . . . . . . . . . . . . Duelist 1 | . . . 1 . . . . . . . . . . . . . . . . . . . . . . . . . . . Researcher 2 | . . . . . . . . . . . . . . . . . . . . . . . . . . . . . . 2 Sentry 29 | . . . 9 . 5 11 4 . . . . . . . . . . . . . . . . . . . . . . . Hunter 1 | . . . . . 1 . . . . . . . . . . . . . . . . . . . . . . . . . Heavy 1 | . . . . . 1 . . . . . . . . . . . . . . . . . . . . . . . . . Decapitator 5 | . . . . . . . . . . . . . . . . . . . . . . . . . . . . . . 5 Best Kill Streak 12 | 2 3 3 10 1 4 5 2 . 1 . 1 4 4 . 1 8 4 . . . 1 . . 3 . . 1 12 2 6 Combat Bots Only 9 | . 3 3 8 . 4 4 2 . . . . 4 4 . 1 6 4 . . . . . . 3 . . . 9 . 4 Max Kills in Single Turn 7 | 1 1 1 2 1 3 1 1 . 1 . 1 4 2 . 1 7 1 . . . 1 . . 1 . . 1 4 1 3 Gunslinging 2 | . . . . . 2 . . . . . . . . . . . . . . . . . . . . . . . . . Exploded 5 | . . . . . . . . . . . . 4 2 . . 5 1 . . . . . . 1 . . . 4 . 3 Melee 1 | . . . . . . . . . . . . 1 . . 1 1 . . . . . . . . . . . . . 1 Uniques/NPCs Destroyed . | . . . . . . . . . . . . . . . . . . . . . . . . . . . . . . . Combat | -11 -10 -10 -9 -9 -8 -8 -8 -8 -6 -6 -6 -6 -6 -6 -5 -5 -5 -5 -5 -4 -4 -4 -4 -4 -3 -3 -3 -2 -2 -2 -------- Run | Yrd Mat Min Mat Min Mat Sto Rec Scr Fac Was Fac Low Low Dat Pro Fac Upp Upp Zhi Pro Fac Upp Upp War Pro Res Tes Res Qua Frg Hostile Shots Fired 894 | . 88 19 88 . 118 118 12 . 8 . . 12 3 . . 66 17 . . . 4 19 . 7 6 6 4 37 18 244 Missed 332 | . 21 4 30 . 37 39 4 . 4 . . 6 1 . . 29 9 . . . 2 8 . 2 5 4 4 17 9 97 Hits 562 | . 67 15 58 . 81 79 8 . 4 . . 6 2 . . 37 8 . . . 2 11 . 5 1 2 . 20 9 147 Melee 16 | . . . . . . 2 . . . . . . . . . . . . . . . . . . . . . . . 14 Projectile 546 | . 67 15 58 . 81 77 8 . 4 . . 6 2 . . 37 8 . . . 2 11 . 5 1 2 . 20 9 133 AOE 3 | . . . . . . 1 . . . . . . . . . . . . . . . . . . . . . . . 2 Critical Strikes 35 | . 2 . 2 . 2 7 . . 1 . . . . . . . . . . . 1 . . . . . . . . 20 Actively Blocked 18 | . . . . . . . . . . . . . . . . . . . . . . . . . . . . . . 18 Damage Taken 10356 | . 823 153 738 . 1317 1294 114 . 68 . . 121 32 . . 598 182 . . . 43 198 . 141 16 58 . 531 235 3694 Core 2209 | . 155 . 51 . 130 96 14 . 19 . . 12 . . . 211 . . . . 24 18 . 14 . . . 73 41 1351 Absorbed by Shields 191 | . . . . . . . . . . . . . . . . . . . . . . . . . . . . . . 191 Regen/Repaired (Parts) 1617 | . 59 . 277 . 224 578 . . . . . . . . . 106 60 53 4 . . 13 . 26 5 63 21 73 44 11 Core Remaining (%) 81 | 100 . 38 . 87 . . . 56 . . . . . . 96 . . . . 78 . . . . 95 . 100 . . . Volleys Fired 515 | 2 87 21 85 . 90 108 7 . 11 1 2 4 3 . 2 19 10 3 8 3 8 7 2 10 1 4 1 8 2 6 Largest 3 | 2 2 2 3 . 3 3 2 . 1 1 1 1 1 . 1 1 1 1 1 1 1 1 1 1 1 1 1 1 1 1 Hottest 216 | 40 40 45 137 . 206 216 160 . 35 35 35 43 43 . 35 90 90 90 90 90 90 105 105 49 105 105 105 120 120 200 Shots Fired 1082 | 4 174 42 252 1 261 218 15 . 11 1 2 4 3 . 2 19 10 3 8 3 8 7 2 10 1 4 1 8 2 6 Gun 710 | 4 174 42 252 1 237 . . . . . . . . . . . . . . . . . . . . . . . . . Cannon 341 | . . . . . 24 218 15 . 11 1 2 . . . 2 14 6 3 8 3 8 7 2 . 1 4 1 3 2 6 Launcher 31 | . . . . . . . . . . . . 4 3 . . 5 4 . . . . . . 10 . . . 5 . . Special . | . . . . . . . . . . . . . . . . . . . . . . . . . . . . . . . Kinetic 312 | 4 174 42 92 . . . . . . . . . . . . . . . . . . . . . . . . . . . Thermal 739 | . . . 160 1 261 218 15 . 11 1 2 . . . 2 14 6 3 8 3 8 7 2 . 1 4 1 3 2 6 Explosive 31 | . . . . . . . . . . . . 4 3 . . 5 4 . . . . . . 10 . . . 5 . . Electromagnetic . | . . . . . . . . . . . . . . . . . . . . . . . . . . . . . . . Robot Hit Streak 31 | 3 23 8 31 . 30 26 4 . . . . 5 1 . . 4 3 . 9 . . . . . . . . . . 1 Robot Miss Streak 6 | . 4 3 4 . 4 6 1 . . . . . 1 . . 1 1 . 1 . . . . . . . . 4 . 5 Penetration Max . | . . . . . . . . . . . . . . . . . . . . . . . . . . . . . . . Secondary Targets 11 | . . . 5 . 6 . . . . . . . . . . . . . . . . . . . . . . . . . Max Gunslinging Chain 2 | . . . 1 . 2 . . . . . . . . . . . . . . . . . . . . . . . . . Shots Hit Robots 710 | 3 119 27 156 . 196 143 9 . 2 . 1 2 1 . 3 9 5 . 7 . 3 . . . . . 3 5 5 11 Core Hits 336 | 3 43 9 65 2 67 43 5 . 2 . 1 9 5 . 1 23 7 . 2 . . . . 21 . . 1 15 2 10 Critical Kills 3 | . 1 . . . . 2 . . . . . . . . . . . . . . . . . . . . . . . . Critical Parts Destroyed 1 | . . 1 . . . . . . . . . . . . . . . . . . . . . . . . . . . . Critical Strikes 21 | . 1 1 5 . 8 2 . . . . . . . . . . . . . . . . . . . . 1 . . 3 Burn 13 | . . . 5 . 8 . . . . . . . . . . . . . . . . . . . . . . . . . Meltdown 2 | . . . . . . 2 . . . . . . . . . . . . . . . . . . . . . . . . Destroy 2 | . 1 1 . . . . . . . . . . . . . . . . . . . . . . . . . . . . Sever 1 | . . . . . . . . . . . . . . . . . . . . . . . . . . . 1 . . . Impale 3 | . . . . . . . . . . . . . . . . . . . . . . . . . . . . . . 3 Melee Attacks 210 | . . . 1 . 1 . . . 9 1 14 4 1 . 7 19 . . . . 11 2 3 12 5 14 17 33 24 32 Impact 11 | . . . . . . . . . . . . . . . . . . . . . 11 . . . . . . . . . Slashing 133 | . . . 1 . 1 . . . 8 . . . . . . . . . . . . 2 3 12 5 14 17 33 24 13 Piercing 66 | . . . . . . . . . 1 1 14 4 1 . 7 19 . . . . . . . . . . . . . 19 Sneak Attacks 12 | . . . . . . . . . . . . . . . . 1 . . . . 1 . . . . . . 4 4 2 Combat Hostiles . | . . . . . . . . . . . . . . . . . . . . . . . . . . . . . . . Follow-up Attacks . | . . . . . . . . . . . . . . . . . . . . . . . . . . . . . . . Damage Inflicted 19247 | 32 1152 371 2772 19 3511 3254 252 . 142 . 60 464 368 . 122 1602 387 . 277 . 256 . . 967 . . 172 1458 402 1207 Guns 7331 | 32 1121 363 2699 . 3116 . . . . . . . . . . . . . . . . . . . . . . . . . Cannons 4426 | . . . . . 380 3221 232 . . . . . . . . 69 137 . 277 . . . . . . . . . . 110 Explosions 4865 | . . . . . . . . . . . . 430 368 . . 1353 250 . . . . . . 967 . . . 1058 . 439 Melee 2426 | . . . . . . . . . 142 . 60 34 . . 122 180 . . . . 256 . . . . . 172 400 402 658 Ramming 199 | . 31 8 73 19 15 33 20 . . . . . . . . . . . . . . . . . . . . . . . Kinetic 2297 | 32 1121 363 781 . . . . . . . . . . . . . . . . . . . . . . . . . . . Thermal 9899 | . . . 1918 . 3496 3221 232 . . . . . . . . 69 137 . 277 . . . . . . . . . . 549 Explosive 4426 | . . . . . . . . . . . . 430 368 . . 1353 250 . . . . . . 967 . . . 1058 . . Electromagnetic . | . . . . . . . . . . . . . . . . . . . . . . . . . . . . . . . Impact 256 | . . . . . . . . . . . . . . . . . . . . . 256 . . . . . . . . . Slashing 1341 | . . . . . . . . . 68 . . . . . . . . . . . . . . . . . 172 400 402 299 Piercing 829 | . . . . . . . . . 74 . 60 34 . . 122 180 . . . . . . . . . . . . . 359 Highest Corruption 7 | . . . 3 3 3 3 7 . . . . . . . . . . . . . . . . . . . . . . 6 Average Corruption 2 | . . . 2 3 1 3 4 . . . . . . . . . . . . . . . . . . . . . . 3 Corruption Purged . | . . . . . . . . . . . . . . . . . . . . . . . . . . . . . . . Corruption Blocked . | . . . . . . . . . . . . . . . . . . . . . . . . . . . . . . . Effects 148 | . . . 20 42 17 37 28 . . . . . . . . . . . . . . . . . . . . . . 4 Message Errors 38 | . . . 5 11 3 10 9 . . . . . . . . . . . . . . . . . . . . . . . Matter Fused 33 | . . . 6 7 5 8 6 . . . . . . . . . . . . . . . . . . . . . . 1 Heat Flow Errors 16 | . . . 3 5 1 5 2 . . . . . . . . . . . . . . . . . . . . . . . Energy Discharges 23 | . . . . 10 2 6 4 . . . . . . . . . . . . . . . . . . . . . . 1 Parts Rejected 2 | . . . . . . 1 . . . . . . . . . . . . . . . . . . . . . . . 1 Parts Fused 3 | . . . 1 1 . . 1 . . . . . . . . . . . . . . . . . . . . . . . Data Loss (minor) 18 | . . . . 6 3 5 4 . . . . . . . . . . . . . . . . . . . . . . . Data Loss (major) 7 | . . . 2 . 1 2 1 . . . . . . . . . . . . . . . . . . . . . . 1 Misfires 5 | . . . 1 1 2 . 1 . . . . . . . . . . . . . . . . . . . . . . . Alerts 1 | . . . . 1 . . . . . . . . . . . . . . . . . . . . . . . . . . Weapon Failures 2 | . . . 2 . . . . . . . . . . . . . . . . . . . . . . . . . . . Overload Shots . | . . . . . . . . . . . . . . . . . . . . . . . . . . . . . . . Overflow Damage 997 | . . . 4 . 21 57 . . . . . 18 4 . 14 47 13 . . . 92 . . 18 . . 31 242 128 308 Projectiles 181 | . . . . . 21 57 . . . . . . . . . . 13 . . . . . . . . . . . . 90 Explosions 227 | . . . . . . . . . . . . 18 4 . . 16 . . . . . . . 18 . . . 81 . 90 Melee 589 | . . . 4 . . . . . . . . . . . 14 31 . . . . 92 . . . . . 31 161 128 128 Knockbacks 2 | . . 1 . . . . . . . . . . . . . . . . . . 1 . . . . . . . . . Impact 2 | . . 1 . . . . . . . . . . . . . . . . . . 1 . . . . . . . . . Kinetic . | . . . . . . . . . . . . . . . . . . . . . . . . . . . . . . . Secondary . | . . . . . . . . . . . . . . . . . . . . . . . . . . . . . . . Self-Inflicted Damage 241 | . . . . . . . . . . . . 35 . . . . 47 . . . . . . 45 . . . 114 . . Shots 6 | . . . . . . . . . . . . 1 . . . . 1 . . . . . . 1 . . . 3 . . Rammed 23 | . . . 10 3 4 3 3 . . . . . . . . . . . . . . . . . . . . . . . Targets Rammed 36 | . 7 1 11 3 6 4 4 . . . . . . . . . . . . . . . . . . . . . . . Kicked 7 | . 7 . . . . . . . . . . . . . . . . . . . . . . . . . . . . . Crushed 6 | . . 1 1 . 2 1 1 . . . . . . . . . . . . . . . . . . . . . . . Highest Temperature 348 | . 42 133 247 244 348 247 81 . 4 4 4 4 . 4 4 184 46 138 60 18 28 182 64 . 36 32 32 44 109 214 Average Temperature 45 | . 12 44 30 98 69 80 51 . 4 4 4 4 . 3 3 67 22 70 19 10 12 94 31 . 18 20 18 24 48 83 Received Heat Transfer 2163 | . 381 45 240 . 450 603 36 . . . . . . . . 18 . . . . . 21 . . 9 . . 9 18 333 Effects 3 | . . . . . 3 . . . . . . . . . . . . . . . . . . . . . . . . . Energy Bleed 1 | . . . . . 1 . . . . . . . . . . . . . . . . . . . . . . . . . Interference 2 | . . . . . 2 . . . . . . . . . . . . . . . . . . . . . . . . . Siege Activations . | . . . . . . . . . . . . . . . . . . . . . . . . . . . . . . . Martial Activations . | . . . . . . . . . . . . . . . . . . . . . . . . . . . . . . . Shielding Activations . | . . . . . . . . . . . . . . . . . . . . . . . . . . . . . . . Robots Disrupted . | . . . . . . . . . . . . . . . . . . . . . . . . . . . . . . . Combat Hostiles . | . . . . . . . . . . . . . . . . . . . . . . . . . . . . . . . Robots Corrupted 1 | . . . . . . . . . . . . . . . . . . . . . 1 . . . . . . . . . Combat Hostiles . | . . . . . . . . . . . . . . . . . . . . . . . . . . . . . . . Parts Fried 2 | . . . . . . . . . . . . . . . . . . . . . 2 . . . . . . . . . Impact Corruptions 4 | . . . 1 . . . . . . . . . . . . . . . . . 3 . . . . . . . . . Robots Melted 7 | . . . . . 4 3 . . . . . . . . . . . . . . . . . . . . . . . . Combat Hostiles 6 | . . . . . 4 2 . . . . . . . . . . . . . . . . . . . . . . . . Parts Melted 49 | . . . 10 . 21 16 2 . . . . . . . . . . . . . . . . . . . . . . . Heat Transferred 19610 | . . . 4551 . 7944 5693 411 . . . . . . . . 74 148 . 259 . . . . . . . . . . 530 Parts Sabotaged . | . . . . . . . . . . . . . . . . . . . . . . . . . . . . . . . Parts Stolen . | . . . . . . . . . . . . . . . . . . . . . . . . . . . . . . . Parts Stripped . | . . . . . . . . . . . . . . . . . . . . . . . . . . . . . . . Power Chain Reactions . | . . . . . . . . . . . . . . . . . . . . . . . . . . . . . . . Alert | -11 -10 -10 -9 -9 -8 -8 -8 -8 -6 -6 -6 -6 -6 -6 -5 -5 -5 -5 -5 -4 -4 -4 -4 -4 -3 -3 -3 -2 -2 -2 ------- Run | Yrd Mat Min Mat Min Mat Sto Rec Scr Fac Was Fac Low Low Dat Pro Fac Upp Upp Zhi Pro Fac Upp Upp War Pro Res Tes Res Qua Frg Maximum Alert Level 2 | . . . 1 . 2 2 . . . . . . . . . 2 . . . . . . . . . . . 2 . 2 Low Security (%) 67 | 100 100 100 41 100 31 34 100 . 100 100 100 . . . . 14 . . . . 100 . . . . 100 100 47 100 38 Level 1 27 | . . . 58 . 53 53 . . . . . . . . . 79 . . . . . . . . . . . 37 . 35 Level 2 4 | . . . . . 15 12 . . . . . . . . . 6 . . . . . . . . . . . 15 . 26 Level 3 . | . . . . . . . . . . . . . . . . . . . . . . . . . . . . . . . Level 4 . | . . . . . . . . . . . . . . . . . . . . . . . . . . . . . . . Level 5 . | . . . . . . . . . . . . . . . . . . . . . . . . . . . . . . . High Security . | . . . . . . . . . . . . . . . . . . . . . . . . . . . . . . . Max Security . | . . . . . . . . . . . . . . . . . . . . . . . . . . . . . . . Peak Influence 520 | 5 90 70 344 129 455 422 154 . 90 27 46 . . . . 412 . . . . 74 . . . . 87 33 464 150 520 Initial 300 | . . . . 129 . 122 154 . . 25 . . . . . 300 . . . . . . . . . . 33 6 105 75 Average 135 | 1 23 8 199 8 258 272 50 . 19 10 21 . . . . 292 . . . . 15 . . . . 27 10 246 108 269 Influence Increases 8123 | 10 374 125 979 28 1233 916 251 . 217 2 109 205 90 . 5 996 90 . 5 . 186 135 . 195 . 250 72 685 235 730 Destroy 0b10 Robot/C 3340 | . 240 100 640 20 760 520 80 . . . . 140 80 . . 220 80 . . . . . . 60 . . . 180 . 220 Destroy 0b10 Robot/NC 340 | 10 30 5 80 5 75 40 5 . 10 . 5 . . . 5 20 . . 5 . 5 . . . . . 5 20 15 . Destroy Leader 778 | . 74 20 180 . 220 190 . . 4 . 2 20 10 . . 24 10 . . . 2 . . . . . 2 20 . . Allied During Kill 58 | . . . . 3 55 . . . . . . . . . . . . . . . . . . . . . . . . . Successful Hack 338 | . 15 . 22 . 28 45 11 . 20 . 14 . . . . 21 . . . . 33 . . . . 53 11 24 10 31 Select Force Hacks 150 | . . . . . . . 150 . . . . . . . . . . . . . . . . . . . . . . . Disable Machine 420 | . . . 30 . 15 105 . . . . 15 . . . . 30 . . . . 30 . . . . 30 30 . 60 75 Destroy Structure 524 | . . . 12 . 5 16 5 . 18 2 13 . . . . 66 . . . . 26 . . . . 32 24 231 45 29 Advance Influence 300 | . . . . . . . . . . . . . . . . 300 . . . . . . . . . . . . . . Partial Spotted 330 | . . . . . . . . . 45 . 60 . . . . 30 . . . . 45 . . . . 30 . 30 60 30 Lose Combat Pursuer 1545 | . 15 . 15 . 75 . . . 120 . . 45 . . . 285 . . . . 45 135 . 135 . 105 . 180 45 345 Influence Decreases 7736 | 10 374 125 647 359 943 811 647 . 143 76 93 81 67 163 5 666 213 110 102 . 128 72 84 102 130 190 120 508 290 477 Entered New Map 1510 | . . . . 203 1 169 242 . . 49 . 7 27 163 . . 123 40 97 . . 22 24 37 130 . 27 6 84 59 Time Decay 4832 | 10 290 125 647 156 590 612 395 . 138 27 93 65 40 . 5 324 90 70 5 . 128 50 60 65 . 164 93 186 206 198 Lost Part 396 | . 40 . . . 40 30 10 . . . . . . . . 40 . . . . . . . . . . . 16 . 220 Lost Ally 80 | . . . . . 56 . . . 5 . . 9 . . . 10 . . . . . . . . . . . . . . Purge Threat 918 | . 44 . . . 256 . . . . . . . . . . 292 . . . . . . . . . 26 . 300 . . Squads Dispatched 45 | . 3 1 4 . 5 2 . . 4 . 1 . . . . 10 . . . . 3 . . . . 4 3 1 2 2 Investigation 16 | . 1 1 2 . 2 1 . . 3 . . . . . . 3 . . . . 2 . . . . 1 . . . . Extermination 12 | . . . . . . . . . 1 . 1 . . . . 3 . . . . 1 . . . . 2 1 . 2 1 Reinforcement 15 | . 2 . 2 . 3 1 . . . . . . . . . 4 . . . . . . . . . 1 . 1 . 1 Assault 1 | . . . . . . . . . . . . . . . . . . . . . . . . . . . 1 . . . Garrison 1 | . . . . . . . . . . . . . . . . . . . . . . . . . . . 1 . . . Intercept . | . . . . . . . . . . . . . . . . . . . . . . . . . . . . . . . Searches Triggered . | . . . . . . . . . . . . . . . . . . . . . . . . . . . . . . . Construction Impeded . | . . . . . . . . . . . . . . . . . . . . . . . . . . . . . . . Haulers Reinforced . | . . . . . . . . . . . . . . . . . . . . . . . . . . . . . . . Active Scanning Responses . | . . . . . . . . . . . . . . . . . . . . . . . . . . . . . . . Cargo Convoy Interrupts . | . . . . . . . . . . . . . . . . . . . . . . . . . . . . . . . Stealth | -11 -10 -10 -9 -9 -8 -8 -8 -8 -6 -6 -6 -6 -6 -6 -5 -5 -5 -5 -5 -4 -4 -4 -4 -4 -3 -3 -3 -2 -2 -2 --------- Run | Yrd Mat Min Mat Min Mat Sto Rec Scr Fac Was Fac Low Low Dat Pro Fac Upp Upp Zhi Pro Fac Upp Upp War Pro Res Tes Res Qua Frg Distress Signals 17 | . . . 2 . 7 3 . . 1 . . . . . . 3 . . . . . . . . . . . . . 1 Communications Jammed 36 | . . . . . . . . . . . . . . . . . . . . . . . . . . 13 3 20 . . Distress Signals 26 | . . . . . . . . . . . . . . . . . . . . . . . . . . 13 3 10 . . Times Spotted 411 | . 24 5 47 1 56 36 4 . 12 6 6 6 2 . 2 40 3 . . . 9 8 . 32 3 16 5 29 8 51 Peak Tracking Total 17 | . 5 3 5 . 5 5 1 . 6 5 4 3 2 . 2 17 4 . . . 3 9 . 16 3 7 3 8 6 16 Tactical Retreats 49 | . 1 . 1 . 2 . . . 5 1 . 1 . . . 6 . . . . 2 2 . 4 . 4 . 8 2 10 Traps | -11 -10 -10 -9 -9 -8 -8 -8 -8 -6 -6 -6 -6 -6 -6 -5 -5 -5 -5 -5 -4 -4 -4 -4 -4 -3 -3 -3 -2 -2 -2 ------- Run | Yrd Mat Min Mat Min Mat Sto Rec Scr Fac Was Fac Low Low Dat Pro Fac Upp Upp Zhi Pro Fac Upp Upp War Pro Res Tes Res Qua Frg Traps Triggered 23 | . 4 . 4 . 3 3 . . 1 . . . . . . . . . . . 1 . . . . . . . 1 6 Indirectly . | . . . . . . . . . . . . . . . . . . . . . . . . . . . . . . . Trap Hack Attempts . | . . . . . . . . . . . . . . . . . . . . . . . . . . . . . . . Triggered . | . . . . . . . . . . . . . . . . . . . . . . . . . . . . . . . Disarmed . | . . . . . . . . . . . . . . . . . . . . . . . . . . . . . . . Reprogrammed . | . . . . . . . . . . . . . . . . . . . . . . . . . . . . . . . Reused . | . . . . . . . . . . . . . . . . . . . . . . . . . . . . . . . Traps Extracted . | . . . . . . . . . . . . . . . . . . . . . . . . . . . . . . . Installed . | . . . . . . . . . . . . . . . . . . . . . . . . . . . . . . . Triggered . | . . . . . . . . . . . . . . . . . . . . . . . . . . . . . . . Machines | -11 -10 -10 -9 -9 -8 -8 -8 -8 -6 -6 -6 -6 -6 -6 -5 -5 -5 -5 -5 -4 -4 -4 -4 -4 -3 -3 -3 -2 -2 -2 ---------- Run | Yrd Mat Min Mat Min Mat Sto Rec Scr Fac Was Fac Low Low Dat Pro Fac Upp Upp Zhi Pro Fac Upp Upp War Pro Res Tes Res Qua Frg Machines Disabled 32 | . . . 2 . 1 7 . . . . 1 . . . . 2 . . 1 . 2 . . 2 . 2 2 . 4 6 Max in Single Turn 2 | . . . 1 . 1 1 . . . . 1 . . . . 1 . . 1 . 1 . . 2 . 1 1 . 1 1 Garrison Access 5 | . . . . . 1 1 . . 1 . . . . . . . . . . . . . . . . 1 . . . 1 Machines Repaired . | . . . . . . . . . . . . . . . . . . . . . . . . . . . . . . . Machines Dismantled . | . . . . . . . . . . . . . . . . . . . . . . . . . . . . . . . Machines Sabotaged . | . . . . . . . . . . . . . . . . . . . . . . . . . . . . . . . Overloaded Fab Kills . | . . . . . . . . . . . . . . . . . . . . . . . . . . . . . . . Hacking | -11 -10 -10 -9 -9 -8 -8 -8 -8 -6 -6 -6 -6 -6 -6 -5 -5 -5 -5 -5 -4 -4 -4 -4 -4 -3 -3 -3 -2 -2 -2 --------- Run | Yrd Mat Min Mat Min Mat Sto Rec Scr Fac Was Fac Low Low Dat Pro Fac Upp Upp Zhi Pro Fac Upp Upp War Pro Res Tes Res Qua Frg Machines Accessed 173 | . 7 2 13 . 15 13 13 9 15 . 6 . . 4 . 18 1 . 4 . 11 1 . 4 . 13 8 3 8 5 Terminals 88 | . 4 . 8 . 10 9 6 . 6 . 4 . . . . 7 . . . . 8 . . . . 7 5 3 7 4 Fabricators 8 | . . . . . . . . . 2 . 1 . . . . 2 . . . . 1 . . . . 1 1 . . . Repair Stations 13 | . 1 . 2 . 2 2 . . . . . . . . . 3 . . . . . . . . . 1 1 . 1 . Recycling Units 21 | . 2 . 1 . 1 1 7 . 4 . . . . . . 3 . . . . 2 . . . . . . . . . Scanalyzers 6 | . . . 2 . 1 . . . 1 . . . . . . 1 . . . . . . . . . 1 . . . . Garrison Access 12 | . . . . . 1 1 . . 2 . 1 . . . . 2 . . . . . . . . . 3 1 . . 1 Total Hacks 491 | . 14 2 41 . 41 33 30 60 30 . 12 . . 32 . 44 1 . 17 . 25 1 . 9 . 36 14 20 18 11 Successful 302 | . 10 2 21 . 22 14 13 60 13 . 4 . . 32 . 19 1 . 17 . 16 1 . 9 . 15 7 9 11 6 Failed 189 | . 4 . 20 . 19 19 17 . 17 . 8 . . . . 25 . . . . 9 . . . . 21 7 11 7 5 Catastrophic 37 | . 1 . 3 . 5 1 2 . 5 . 3 . . . . 8 . . . . 2 . . . . 5 2 . . . Database Lockouts . | . . . . . . . . . . . . . . . . . . . . . . . . . . . . . . . Manual 158 | . 7 . 17 . 13 17 19 . 17 . 7 . . . . 11 . . . . 17 . . 1 . 15 6 4 3 4 Terminals 227 | . 10 . 22 . 26 22 12 . 13 . 10 . . . . 17 . . . . 20 . . . . 20 10 20 16 9 Fabricators 15 | . . . . . . . . . 2 . 1 . . . . 5 . . . . 1 . . . . 5 1 . . . Repair Stations 46 | . 2 . 10 . 8 8 . . . . . . . . . 10 . . . . . . . . . 4 2 . 2 . Recycling Units 41 | . 2 . 1 . 1 1 18 . 9 . . . . . . 5 . . . . 4 . . . . . . . . . Scanalyzers 21 | . . . 8 . 4 . . . 4 . . . . . . 3 . . . . . . . . . 2 . . . . Garrison Access 19 | . . . . . 2 2 . . 2 . 1 . . . . 4 . . . . . . . . . 5 1 . . 2 Terminal Hacks 175 | . 4 2 4 . 7 4 2 60 1 . 1 . . 32 . 2 1 . 17 . 8 1 . 9 . 3 1 7 6 3 Record 79 | . . . . . . . . 60 . . . . . 11 . . . . 5 . . . . 2 . . . . 1 . Part Schematic 15 | . . . . . . . . . . . . . . 11 . . . . 4 . . . . . . . . . . . Robot Schematic 7 | . . . . . . . . . . . . . . 7 . . . . . . . . . . . . . . . . Robot Analysis 8 | . 1 . 1 . . . 2 . . . . . . . . . . . 4 . . . . . . . . . . . Prototype ID Bank 13 | . . . . . . . . . . . . . . 3 . . . . 4 . . . . 5 . . . 1 . . Open Door 8 | . . 2 . . . 2 . . . . . . . . . . 1 . . . . 1 . 2 . . . . . . Branch Access Points 6 | . . . 1 . 1 . . . . . 1 . . . . . . . . . 1 . . . . 1 . 1 . . Emergency Access Points 1 | . . . . . 1 . . . . . . . . . . . . . . . . . . . . . . . . . Recycling Unit Index 1 | . . . . . . . . . . . . . . . . . . . . . 1 . . . . . . . . . Unreport Threat 8 | . 1 . . . 2 . . . . . . . . . . 2 . . . . . . . . . 1 . 2 . . Locate Traps 9 | . 1 . 1 . 1 1 . . 1 . . . . . . . . . . . 2 . . . . . . 1 . 1 Patrol Status 1 | . . . . . . . . . . . . . . . . . . . . . . . . . . . . . 1 . Recall Investigation 1 | . . . . . . . . . . . . . . . . . . . . . 1 . . . . . . . . . Recall Extermination 2 | . . . . . . . . . . . . . . . . . . . . . 1 . . . . . . . 1 . Hauler Manifests 5 | . 1 . 1 . 1 1 . . . . . . . . . . . . . . . . . . . . . . 1 . Registered Components 1 | . . . . . . . . . . . . . . . . . . . . . . . . . . . . . 1 . Zone Layout 9 | . . . . . 1 . . . . . . . . . . . . . . . 2 . . . . 1 1 2 1 1 Proto ID Catalog 1 | . . . . . . . . . . . . . . . . . . . . . . . . . . . . . . 1 Fabricator Hacks 9 | . . . . . . . . . 1 . . . . . . 3 . . . . 1 . . . . 3 1 . . . Network Status 5 | . . . . . . . . . 1 . . . . . . 1 . . . . 1 . . . . 1 1 . . . Load Schematic 2 | . . . . . . . . . . . . . . . . 1 . . . . . . . . . 1 . . . . Build 2 | . . . . . . . . . . . . . . . . 1 . . . . . . . . . 1 . . . . Repair Station Hacks 33 | . 2 . 7 . 7 6 . . . . . . . . . 5 . . . . . . . . . 2 2 . 2 . Scan Component 18 | . 1 . 4 . 4 3 . . . . . . . . . 3 . . . . . . . . . 1 1 . 1 . Repair 15 | . 1 . 3 . 3 3 . . . . . . . . . 2 . . . . . . . . . 1 1 . 1 . Recycling Unit Hacks 13 | . 2 . . . 1 1 4 . 3 . . . . . . 1 . . . . 1 . . . . . . . . . Retrieve Components 13 | . 2 . . . 1 1 4 . 3 . . . . . . 1 . . . . 1 . . . . . . . . . Scanalyzer 17 | . . . 8 . 4 . . . 2 . . . . . . 3 . . . . . . . . . . . . . . Insert Component 9 | . . . 4 . 2 . . . 1 . . . . . . 2 . . . . . . . . . . . . . . Analyze 8 | . . . 4 . 2 . . . 1 . . . . . . 1 . . . . . . . . . . . . . . Garrison Access Hacks 5 | . . . . . 1 1 . . 1 . . . . . . . . . . . . . . . . 1 . . . 1 Seal Access 5 | . . . . . 1 1 . . 1 . . . . . . . . . . . . . . . . 1 . . . 1 Unauthorized Hacks 50 | . 2 . 2 . 2 2 7 . 5 . 3 . . . . 5 . . . . 6 . . . . 6 3 2 3 2 Terminals 36 | . 2 . 2 . 2 2 2 . 2 . 3 . . . . 1 . . . . 4 . . . . 6 3 2 3 2 Track 5 | . . . . . . . . . . . . . . . . . . . . . . . . . . 2 1 . 1 1 Assimilate 7 | . . . . . . . . . 2 . 1 . . . . 1 . . . . 1 . . . . 2 . . . . Botnet 24 | . 2 . 2 . 2 2 2 . . . 2 . . . . . . . . . 3 . . . . 2 2 2 2 1 Fabricators 3 | . . . . . . . . . 1 . . . . . . 2 . . . . . . . . . . . . . . Prioritize 1 | . . . . . . . . . . . . . . . . 1 . . . . . . . . . . . . . . Liberate 2 | . . . . . . . . . 1 . . . . . . 1 . . . . . . . . . . . . . . Repair Stations . | . . . . . . . . . . . . . . . . . . . . . . . . . . . . . . . Recycling Units 11 | . . . . . . . 5 . 2 . . . . . . 2 . . . . 2 . . . . . . . . . Tunnel 5 | . . . . . . . 5 . . . . . . . . . . . . . . . . . . . . . . . Fedlink 6 | . . . . . . . . . 2 . . . . . . 2 . . . . 2 . . . . . . . . . Scanalyzers . | . . . . . . . . . . . . . . . . . . . . . . . . . . . . . . . Garrison Access . | . . . . . . . . . . . . . . . . . . . . . . . . . . . . . . . Data Cores Recovered 2 | . . . . . 2 . . . . . . . . . . . . . . . . . . . . . . . . . Used . | . . . . . . . . . . . . . . . . . . . . . . . . . . . . . . . Hacking Detections 114 | . 5 . 13 . 13 9 7 . 12 . 6 . . . . 14 . . . . 8 . . . . 12 5 3 4 3 Full Trace Events 7 | . . . 1 . 2 1 . . 1 . . . . . . 1 . . . . . . . . . 1 . . . . Feedback Events . | . . . . . . . . . . . . . . . . . . . . . . . . . . . . . . . Feedback Blocked . | . . . . . . . . . . . . . . . . . . . . . . . . . . . . . . . Robot Schematics Acquired 7 | . . . . . . . . . . . . . . 7 . . . . . . . . . . . . . . . . Robots Built . | . . . . . . . . . . . . . . . . . . . . . . . . . . . . . . . Authchips . | . . . . . . . . . . . . . . . . . . . . . . . . . . . . . . . Time . | . . . . . . . . . . . . . . . . . . . . . . . . . . . . . . . Total Robot Build Rating . | . . . . . . . . . . . . . . . . . . . . . . . . . . . . . . . Part Schematics Acquired 25 | . . . 4 . 2 . . . . . . . . 11 . 1 . . 4 . . . . . . . . . . 3 Parts Built 2 | . . . . . . . . . . . . . . . . 1 . . . . . . . . . 1 . . . . Authchips . | . . . . . . . . . . . . . . . . . . . . . . . . . . . . . . . Time 177 | . . . . . . . . . . . . . . . . 152 . . . . . . . . . 25 . . . . Total Part Build Rating 6 | . . . . . . . . . . . . . . . . 5 . . . . . . . . . 1 . . . . Parts Repaired 15 | . 1 . 3 . 3 3 . . . . . . . . . 2 . . . . . . . . . 1 1 . 1 . Time 600 | . 26 . 109 . 120 95 . . . . . . . . . 101 . . . . . . . . . 31 56 . 62 . Parts Recycled . | . . . . . . . . . . . . . . . . . . . . . . . . . . . . . . . Recycled Matter . | . . . . . . . . . . . . . . . . . . . . . . . . . . . . . . . Retrieved Matter . | . . . . . . . . . . . . . . . . . . . . . . . . . . . . . . . Retrieved Components 36 | . 7 . . . 9 3 13 . 3 . . . . . . . . . . . 1 . . . . . . . . . Parts Scanalyzed 8 | . . . 4 . 2 . . . 1 . . . . . . 1 . . . . . . . . . . . . . . Part Schematics Acquired 7 | . . . 4 . 2 . . . . . . . . . . 1 . . . . . . . . . . . . . . Parts Damaged 1 | . . . . . . . . . . . . . . . . 1 . . . . . . . . . . . . . . Bothacking | -11 -10 -10 -9 -9 -8 -8 -8 -8 -6 -6 -6 -6 -6 -6 -5 -5 -5 -5 -5 -4 -4 -4 -4 -4 -3 -3 -3 -2 -2 -2 ------------ Run | Yrd Mat Min Mat Min Mat Sto Rec Scr Fac Was Fac Low Low Dat Pro Fac Upp Upp Zhi Pro Fac Upp Upp War Pro Res Tes Res Qua Frg Used RIF Installer . | . . . . . . . . . . . . . . . . . . . . . . . . . . . . . . . Robots Hacked . | . . . . . . . . . . . . . . . . . . . . . . . . . . . . . . . Non-combat . | . . . . . . . . . . . . . . . . . . . . . . . . . . . . . . . Combat . | . . . . . . . . . . . . . . . . . . . . . . . . . . . . . . . Robot Hacks Applied . | . . . . . . . . . . . . . . . . . . . . . . . . . . . . . . . Relay Couplers Released . | . . . . . . . . . . . . . . . . . . . . . . . . . . . . . . . Fabnet Peak Effective % . | . . . . . . . . . . . . . . . . . . . . . . . . . . . . . . . Robots Rewired . | . . . . . . . . . . . . . . . . . . . . . . . . . . . . . . . Allies Hacked . | . . . . . . . . . . . . . . . . . . . . . . . . . . . . . . . Hacks Repelled . | . . . . . . . . . . . . . . . . . . . . . . . . . . . . . . . Allies | -11 -10 -10 -9 -9 -8 -8 -8 -8 -6 -6 -6 -6 -6 -6 -5 -5 -5 -5 -5 -4 -4 -4 -4 -4 -3 -3 -3 -2 -2 -2 -------- Run | Yrd Mat Min Mat Min Mat Sto Rec Scr Fac Was Fac Low Low Dat Pro Fac Upp Upp Zhi Pro Fac Upp Upp War Pro Res Tes Res Qua Frg Total Allies 7 | . . . . 3 . . . . 1 . 1 . . . . 1 . . . . 1 . . . . . . . . . Largest Group 3 | . . . . 3 3 . . . 1 . 1 1 . . . 1 . . . . 1 . . . . . . . . . Highest-Rated Group 40 | . . . . 40 40 . . . 10 . 10 10 . . . 10 . . . . 10 . . . . . . . . . Highest-Rated Ally 16 | . . . . 16 16 . . . 10 . 10 10 . . . 10 . . . . 10 . . . . . . . . . Total Orders . | . . . . . . . . . . . . . . . . . . . . . . . . . . . . . . . Ally Attacks 80 | . . . . 6 74 . . . . . . . . . . . . . . . . . . . . . . . . . Total Damage 780 | . . . . 83 697 . . . . . . . . . . . . . . . . . . . . . . . . . Kills 10 | . . . . 1 9 . . . . . . . . . . . . . . . . . . . . . . . . . Allies Corrupted . | . . . . . . . . . . . . . . . . . . . . . . . . . . . . . . . Allies Melted 1 | . . . . . . . . . . . . . . . . . . . . . . . . 1 . . . . . . Intel | -11 -10 -10 -9 -9 -8 -8 -8 -8 -6 -6 -6 -6 -6 -6 -5 -5 -5 -5 -5 -4 -4 -4 -4 -4 -3 -3 -3 -2 -2 -2 ------- Run | Yrd Mat Min Mat Min Mat Sto Rec Scr Fac Was Fac Low Low Dat Pro Fac Upp Upp Zhi Pro Fac Upp Upp War Pro Res Tes Res Qua Frg Active Infowar (turns) 10018 | 24 342 . . . . 1661 941 851 423 96 232 153 88 21 114 806 196 159 118 334 444 118 129 482 385 426 260 390 424 401 Optics 8671 | . . . . . . 1661 876 . 359 96 232 153 88 21 114 806 196 159 118 334 444 118 129 482 385 426 260 390 423 401 Sensors 5487 | . . . . . . . . . 423 96 232 134 88 21 114 548 162 159 110 334 430 110 129 444 374 331 259 376 328 285 IFF 2 | . . . . . . . . . 2 . . . . . . . . . . . . . . . . . . . . . Structural 6931 | . . . . . . . 65 851 416 96 227 137 88 21 114 805 196 159 118 334 441 118 126 480 385 426 260 340 423 305 Seismic 366 | 24 342 . . . . . . . . . . . . . . . . . . . . . . . . . . . . . Jamming 1743 | . . . . . . . . . . . . . . . . 2 . . . . . 8 . . . 364 204 390 424 351 ECM 17 | . . . . . . . . . . . . . . . . 6 . . . . 11 . . . . . . . . . Robot Analysis Total 8 | . 1 . 1 . . . 2 . . . . . . . . . . . 4 . . . . . . . . . . . Derelict Logs Recovered 15 | . . 1 . 1 . . . . . . . 2 1 . 2 . 1 2 . 2 . 1 2 . . . . . . . Drone Launches . | . . . . . . . . . . . . . . . . . . . . . . . . . . . . . . . Drone Recoveries . | . . . . . . . . . . . . . . . . . . . . . . . . . . . . . . . Exploration | -11 -10 -10 -9 -9 -8 -8 -8 -8 -6 -6 -6 -6 -6 -6 -5 -5 -5 -5 -5 -4 -4 -4 -4 -4 -3 -3 -3 -2 -2 -2 ------------- Run | Yrd Mat Min Mat Min Mat Sto Rec Scr Fac Was Fac Low Low Dat Pro Fac Upp Upp Zhi Pro Fac Upp Upp War Pro Res Tes Res Qua Frg Turns Passed 22458 | 85 1318 1128 2545 2572 2478 2002 1233 2886 431 96 232 153 88 21 114 806 196 159 118 334 444 118 129 482 385 426 260 390 424 405 Spaces Moved 21683 | 52 739 622 1205 599 1127 840 491 1716 1081 162 602 411 308 84 318 1793 403 412 180 371 1289 342 415 972 910 989 545 908 971 826 Core 13 | 13 . . . . . . . . . . . . . . . . . . . . . . . . . . . . . . Treads 6427 | . . 449 1205 599 1127 840 491 1716 . . . . . . . . . . . . . . . . . . . . . . Legs 951 | 39 739 173 . . . . . . . . . . . . . . . . . . . . . . . . . . . . Wheels . | . . . . . . . . . . . . . . . . . . . . . . . . . . . . . . . Hover . | . . . . . . . . . . . . . . . . . . . . . . . . . . . . . . . Flight 14292 | . . . . . . . . . 1081 162 602 411 308 84 318 1793 403 412 180 371 1289 342 415 972 910 989 545 908 971 826 Fastest Speed 6 | 50 120 160 160 160 160 170 170 166 25 25 25 25 25 25 25 25 25 25 25 25 25 25 25 25 25 21 21 22 13 6 Average Speed 73 | 120 129 168 160 160 170 177 241 167 25 25 25 25 25 25 25 25 25 25 25 25 25 25 25 25 25 22 25 24 23 19 Slowest Speed 250 | 190 190 190 240 160 250 250 250 170 25 25 25 25 25 25 25 25 25 25 25 25 25 96 25 95 25 25 26 26 24 74 Overloaded Moves 187 | . . . . . . . . . . . . . . . . . . . . . . . . . . . . . 17 170 Propulsion Burnouts . | . . . . . . . . . . . . . . . . . . . . . . . . . . . . . . . Robots Hopped 78 | . . . . . . . . . 11 . 2 . . . . 19 . . . . 2 . . . . 14 3 3 3 21 Potential Cave-ins 44 | . . . . . . . . . . . . . . . . . . . . . . 2 . . . . . . . 42 Cave-ins Triggered . | . . . . . . . . . . . . . . . . . . . . . . . . . . . . . . . Exploration Rate (%) 66 | 5 95 98 93 98 99 97 99 93 36 80 27 82 57 75 58 47 61 64 63 62 40 64 71 94 90 33 59 31 69 26 Regions Visited 30 Branch Regions 20 Pre-discovered Areas 15 | . . . . 1 . 1 5 . 1 . . . . 1 . . . 1 3 1 . . 1 . . . . . . . Known Exits Taken 23 | . . . 1 1 1 . . 1 . . 1 1 1 1 1 1 1 1 1 1 1 1 1 1 1 1 1 1 1 . Unknown Exits Taken 5 | 1 1 1 . . . 1 1 . . . . . . . . . . . . . . . . . . . . . . . Scrap Searched 30 | . . 2 . 1 . . . 9 . . . 2 . . 3 . 1 2 . 2 . 2 3 . 3 . . . . . Spaces Dug 177 | . . . . . . . . . 18 2 13 . 1 . 2 15 1 3 . 3 13 9 5 10 6 16 12 30 15 3 Terrain Destroyed 567 | . . . . . 3 14 5 . 18 2 13 68 47 . 2 45 60 3 . 3 13 9 5 122 6 16 12 75 15 11 Melee 117 | . . . . . . . . . 7 1 11 . 1 . . 5 . . . . 6 2 3 10 5 12 11 27 14 2 Projectile 78 | . . . . . 3 6 5 . 11 1 2 . . . 2 11 2 3 . 3 7 7 2 . 1 4 1 3 1 3 AOE 372 | . . . . . . 8 . . . . . 68 46 . . 29 58 . . . . . . 112 . . . 45 . 6 Terrain Rammed . | . . . . . . . . . . . . . . . . . . . . . . . . . . . . . . . Walls Destroyed . | . . . . . . . . . . . . . . . . . . . . . . . . . . . . . . . Machines Disabled . | . . . . . . . . . . . . . . . . . . . . . . . . . . . . . . . Actions | -11 -10 -10 -9 -9 -8 -8 -8 -8 -6 -6 -6 -6 -6 -6 -5 -5 -5 -5 -5 -4 -4 -4 -4 -4 -3 -3 -3 -2 -2 -2 --------- Run | Yrd Mat Min Mat Min Mat Sto Rec Scr Fac Was Fac Low Low Dat Pro Fac Upp Upp Zhi Pro Fac Upp Upp War Pro Res Tes Res Qua Frg Total 26901 | 67 948 668 1634 2212 1485 1144 519 1737 1212 215 652 446 313 83 336 2076 487 464 245 609 1386 362 433 1185 1057 1151 632 1012 1126 1005 Wait 3681 | 2 75 8 254 1602 156 136 5 . 68 46 23 20 . . 4 209 63 48 45 232 34 6 5 161 133 137 57 31 83 38 Move 21502 | 51 738 621 1204 598 1126 839 490 1715 1059 161 597 410 307 83 317 1755 402 411 179 370 1284 341 414 971 909 960 538 901 964 787 Hop 74 | . . . . . . . . . 11 . 2 . . . . 18 . . . . 2 . . . . 14 3 3 3 18 Pick Up 146 | 3 14 4 22 4 24 8 3 6 4 2 2 . . . 1 7 1 . 2 . 7 . 1 2 1 4 5 6 6 7 Fast Attach 172 | 8 10 4 20 . 26 18 1 5 10 . 4 . . . 1 9 1 . 4 . 8 1 3 6 1 2 2 6 6 16 Attach 121 | . 2 . 2 . 10 6 3 . 13 1 1 2 1 . 1 13 3 1 1 2 9 1 1 8 1 6 1 7 4 21 Detach 86 | . . . 1 . 3 6 1 . 6 1 1 2 1 . 1 12 3 1 1 2 7 1 1 7 1 4 1 5 3 14 Swap 67 | . 3 3 6 1 6 4 1 . 2 . . 4 . . . 5 2 . . . 4 2 . 1 3 3 4 3 5 5 Drop 226 | 1 12 6 28 4 37 15 4 11 19 2 6 . . . 2 10 2 . 5 . 12 1 3 7 2 3 3 9 8 14 Fire 515 | 2 87 21 85 . 90 108 7 . 11 1 2 4 3 . 2 19 10 3 8 3 8 7 2 10 1 4 1 8 2 6 Melee 210 | . . . 1 . 1 . . . 9 1 14 4 1 . 7 19 . . . . 11 2 3 12 5 14 17 33 24 32 Ram . | . . . . . . . . . . . . . . . . . . . . . . . . . . . . . . . Kick 7 | . 7 . . . . . . . . . . . . . . . . . . . . . . . . . . . . . Crush 29 | . . 1 11 3 6 4 4 . . . . . . . . . . . . . . . . . . . . . . . Escape Stasis 65 | . . . . . . . . . . . . . . . . . . . . . . . . . . . . . 18 47 Rewire . | . . . . . . . . . . . . . . . . . . . . . . . . . . . . . . . Trap . | . . . . . . . . . . . . . . . . . . . . . . . . . . . . . . . Miscellaneous . | . . . . . . . . . . . . . . . . . . . . . . . . . . . . . . . Route ------- -11/Scrapyard -10/Materials (discovered 5 exits: *Mat x3 / *Min / [*Sub]) -10/Mines (discovered 3 exits: *Mat x2 / [*Exi]) -9/Materials (discovered 5 exits: *Mat x3 / *Min x2) -9/Mines (discovered 3 exits: *Mat x2 / [*Zio]) -8/Materials (discovered 4 exits: [*Fac x3] / *Sto) -8/Storage (discovered 2 exits: [*Fac] / *Rec) -8/Recycling (discovered 2 exits: *Fac / *Scr) -8/Scraptown (discovered 2 exits: *Fac x2) -6/Factory (discovered 2 exits: *Fac / *Low) -6/Waste -6/Factory (discovered 3 exits: *Fac / *Low x2) -6/Lower Caves -6/Lower Caves -6/Data Miner -5/Proximity Caves -5/Factory (discovered 4 exits: *Fac x3 / *Upp) -5/Upper Caves -5/Upper Caves (discovered 2 exits: *Fac / *Zhi) -5/Zhirov -4/Proximity Caves -4/Factory (discovered 3 exits: *Upp x2 / Arm) -4/Upper Caves -4/Upper Caves -4/Warlord -3/Proximity Caves -3/Research (discovered 3 exits: Res / *Tes x2) -3/Testing -2/Research (discovered 3 exits: *Acc / *Qua x2) -2/Quarantine (discovered 2 exits: [*Sec] / *Frg) -2/Protoforge (discovered 1 exit: *Acc) History --------- Turn | Location | Event 12 | -11/Scrapyard | Discovered new exit (range 16) 86 | -11/Scrapyard | Entered Materials 87 | -10/Materials | Met a group of wandering Federalists 141 | -10/Materials | Discovered new exit (range 12) 211 | -10/Materials | Discovered new exit (range 13) 315 | -10/Materials | Build established: Mutant 813 | -10/Materials | Discovered new exit (range 4) 871 | -10/Materials | Core integrity fell below 50% 907 | -10/Materials | Lost 3 parts (1p1n1u) 931 | -10/Materials | Repaired Aluminum Leg 970 | -10/Materials | Discovered new exit (range 8) 1099 | -10/Materials | Discovered new exit (range 12) 1404 | -10/Materials | Entered Mines 1425 | -10/Mines | Learned location of 1 exit from Materials 1439 | -10/Mines | Met a Derelict bent on vengeance 1468 | -10/Mines | Found the Drone Emporium 1477 | -10/Mines | Found Prototype Device 1477 | -10/Mines | Identified Thief Drone Bay 1607 | -10/Mines | Discovered new exit (range 13) 1709 | -10/Mines | Met a Derelict shopkeep closing up shop 1884 | -10/Mines | Deemed a non-threat by the Exiles lab entrance 1884 | -10/Mines | Discovered new exit (range 5) 1950 | -10/Mines | Discovered new exit (range 7) 2532 | -10/Mines | Entered Materials 2532 | -9/Materials | Evolved 2 slots: Propulsion x1, Weapon x1 2533 | -9/Materials | Identified exit to Materials 2832 | -9/Materials | Destroyed 8 combat bots 2951 | -9/Materials | Build established: Gunner 3062 | -9/Materials | Repaired Huge Storage Unit 3549 | -9/Materials | Discovered new exit (range 5) 3884 | -9/Materials | Discovered exit to Materials (range 7) 3928 | -9/Materials | Identified exit to Mines 4104 | -9/Materials | Repaired Imp. Medium Laser 4137 | -9/Materials | Repaired Cooling System 4865 | -9/Materials | Discovered exit to Materials (range 6) 5077 | -9/Materials | Entered Mines 5084 | -9/Mines | Assisted by bots powering up and referring to "LRC-V3" 5161 | -9/Mines | Joined a pair of Derelicts in attacking an 0b10 outpost 5292 | -9/Mines | Assembled infested the area 7155 | -9/Mines | Learned location of Storage (-8) 7161 | -9/Mines | Discovered exit to Materials (range 12) 7306 | -9/Mines | Learned Materials emergency access door positions 7322 | -9/Mines | Discovered exit to Materials (range 7) 7331 | -9/Mines | Received a Rocket Launcher from a helpful Derelict 7402 | -9/Mines | A Derelict revealed a hidden shortcut to a safe place 7649 | -9/Mines | Entered Materials 7649 | -8/Materials | Accompanied by 3 allies 7649 | -8/Materials | Evolved 2 slots: Utility x2 7732 | -8/Materials | Identified exit to Storage 8060 | -8/Materials | Discovered new exit (range 7) 8595 | -8/Materials | Discovered new exit (range 15) 9059 | -8/Materials | Discovered new exit (range 8) 9148 | -8/Materials | Repaired Cryofiber Web 9194 | -8/Materials | Repaired Broken Imp. Treads 9760 | -8/Materials | Build established: Mutant 9831 | -8/Materials | Repaired Arm. Treads 10127 | -8/Materials | Entered Storage 10192 | -8/Storage | Repaired Arm. Treads 10289 | -8/Storage | Learned location of Armory (-4) 11036 | -8/Storage | Repaired Arm. Treads 11076 | -8/Storage | Repaired Arm. Treads 11735 | -8/Storage | Discovered new exit (range 19) 12121 | -8/Storage | Used back door to open Recycling access 12121 | -8/Storage | Discovered new exit (range 4) 12129 | -8/Storage | Entered Recycling 12130 | -8/Recycling | Met a Zionite searching for Scraptown 12571 | -8/Recycling | Discovered new exit (range 20) 13270 | -8/Recycling | Scanned before Scraplab entrance 13298 | -8/Recycling | Discovered new exit (range 9) 13345 | -8/Recycling | Entered Scraplab 13362 | -8/Recycling | Entered Scraptown 13362 | -8/Scraptown | System corruption cleaned by C-Scrubber 13687 | -8/Scraptown | Discovered new exit (range 5) 13803 | -8/Scraptown | Visited Symbiants 13813 | -8/Scraptown | Heard Great Nut preacher, LISTEN AND RECITE! 13869 | -8/Scraptown | Visited Spacefarers 14338 | -8/Scraptown | Visited Comm Corps 14436 | -8/Scraptown | Visited Bundlers 14600 | -8/Scraptown | Visited Cave Peace 14643 | -8/Scraptown | Visited Awakened 14912 | -8/Scraptown | Visited Cyclists 14960 | -8/Scraptown | Visited UFD Registry 14960 | -8/Scraptown | Registered with UFD as "Autosplitter" 14993 | -8/Scraptown | Entered Cyclist Reading Room 15091 | -8/Scraptown | Visited Curators Association 15149 | -8/Scraptown | Visited Observation Area 15232 | -8/Scraptown | Visited Scrapoid Research Area 15377 | -8/Scraptown | Discovered new exit (range 3) 15430 | -8/Scraptown | Visited Modified Component R&D 15513 | -8/Scraptown | Visited Scrap Suit Storage 15571 | -8/Scraptown | Visited Scrapoid Pod Storage 15603 | -8/Scraptown | Visited Abandonware Association 15621 | -8/Scraptown | Learned abandonware demo "TRNCOAT.EXE" 15659 | -8/Scraptown | Visited DA-N13 Charitable Foundation 15677 | -8/Scraptown | Found DCF Scrap (29 items) 15747 | -8/Scraptown | Visited Chapter 10 16137 | -8/Scraptown | Met Optimus 16137 | -8/Scraptown | Accepted into 0bPrime 16246 | -8/Scraptown | Identified exit to Factory 16248 | -8/Scraptown | Entered Factory 16248 | -6/Factory | Evolved 4 slots: Propulsion x2, Utility x2 16450 | -6/Factory | Loaded intel: 8 recycling unit locations 16504 | -6/Factory | Discovered new exit (range 4) 16558 | -6/Factory | Learned location of Protoforge (-2) 16568 | -6/Factory | Build established: Scout 16637 | -6/Factory | Discovered new exit (range 5) 16638 | -6/Factory | Identified exit to Factory 16679 | -6/Factory | Sucked down chute 16679 | -6/Factory | Entered Waste 16683 | -6/Waste | Found Prototype Hackware 16702 | -6/Waste | Spotted C-40 Crusher 16702 | -6/Waste | Spotted C-40 Crusher 16753 | -6/Waste | Spotted C-40 Crusher 16754 | -6/Waste | Spotted C-40 Crusher 16755 | -6/Waste | Spotted C-40 Crusher 16761 | -6/Waste | Discovered new exit (range 13) 16761 | -6/Waste | Spotted C-40 Crusher 16775 | -6/Waste | Identified exit to Factory 16775 | -6/Waste | Entered Factory 16808 | -6/Factory | Discovered exit to Factory (range 11) 16956 | -6/Factory | Identified exit to Lower Caves 17007 | -6/Factory | Entered Lower Caves 17007 | -6/Lower Caves | Accompanied by 1 ally 17060 | -6/Lower Caves | Encountered a Warlord checkpoint 17071 | -6/Lower Caves | Learned location of 1 exit from Proximity Caves 17150 | -6/Lower Caves | Discovered new exit (range 6) 17152 | -6/Lower Caves | Identified exit to Lower Caves 17160 | -6/Lower Caves | Entered another Lower Caves area 17197 | -6/Lower Caves | Discovered new exit (range 20) 17203 | -6/Lower Caves | Identified exit to Data Miner 17214 | -6/Lower Caves | Learned Factory stockpile data 17248 | -6/Lower Caves | Entered Data Miner 17248 | -6/Data Miner | Discovered new exit (range 6) 17252 | -6/Data Miner | Met Data Miner 17259 | -6/Data Miner | Learned location of Section 7 (-2) 17259 | -6/Data Miner | Acquired the access code to Warlord's prototype stash 17264 | -6/Data Miner | Received God Mode back door access code from Data Miner 17269 | -6/Data Miner | Identified exit to Proximity Caves 17269 | -6/Data Miner | Entered Proximity Caves 17310 | -5/Proximity Caves | Learned Factory stockpile data 17313 | -5/Proximity Caves | Spotter reported a threat 17322 | -5/Proximity Caves | Spotter reported a threat 17331 | -5/Proximity Caves | Learned Factory emergency access door positions 17383 | -5/Proximity Caves | Entered Factory 17383 | -5/Factory | Evolved 2 slots: Propulsion x1, Utility x1 17383 | -5/Factory | Identified Exp. System Shield 17384 | -5/Factory | Identified exit to Upper Caves 17407 | -5/Factory | Discovered new exit (range 22) 17430 | -5/Factory | Loaded intel: 8 recycling unit locations 17520 | -5/Factory | Discovered new exit (range 22) 17525 | -5/Factory | Identified exit to Factory 17592 | -5/Factory | Lost 3 parts (1p1u1w) 17676 | -5/Factory | Repaired Broken Imp. VTOL Module 17759 | -5/Factory | Discovered exit to Factory (range 21) 17840 | -5/Factory | Fabricated Lgt. Regenerative Plating? 17843 | -5/Factory | Repaired Lrn. Missile Launcher 18189 | -5/Factory | Entered Upper Caves 18191 | -5/Upper Caves | Identified exit to Upper Caves 18237 | -5/Upper Caves | Spotted B-75 Beast 18385 | -5/Upper Caves | Entered another Upper Caves area 18393 | -5/Upper Caves | Discovered exit to Factory (range 16) 18543 | -5/Upper Caves | Discovered new exit (range 3) 18544 | -5/Upper Caves | Identified exit to Zhirov 18544 | -5/Upper Caves | Entered Zhirov 18544 | -5/Zhirov | Discovered new exit (range 3) 18549 | -5/Zhirov | Met Zhirov 18554 | -5/Zhirov | Learned location of Command (-1) 18562 | -5/Zhirov | Zhirov requested help retrieving the SGEMP Prototype 18567 | -5/Zhirov | Found Alien Artifact 18567 | -5/Zhirov | Identified Integrated Dissipator 18567 | -5/Zhirov | Installed Integrated Dissipator, increased core heat dissipation (+20) 18662 | -5/Zhirov | Identified exit to Proximity Caves 18662 | -5/Zhirov | Entered Proximity Caves 18669 | -4/Proximity Caves | Learned location of 1 exit from Research 18969 | -4/Proximity Caves | Discovered exit to Factory (range 15) 18996 | -4/Proximity Caves | Entered Factory 18996 | -4/Factory | Evolved 2 slots: Power x1, Utility x1 19179 | -4/Factory | Identified exit to Upper Caves 19179 | -4/Factory | Identified exit to Armory 19287 | -4/Factory | Loaded intel: 8 recycling unit locations 19303 | -4/Factory | Build established: Hacker-Scout 19440 | -4/Factory | Entered Upper Caves 19472 | -4/Upper Caves | Learned Research machine intel 19554 | -4/Upper Caves | Discovered new exit (range 17) 19558 | -4/Upper Caves | Identified exit to Upper Caves 19558 | -4/Upper Caves | Entered another Upper Caves area 19559 | -4/Upper Caves | Identified exit to Warlord 19588 | -4/Upper Caves | Found DCF Scrap (12 items) 19618 | -4/Upper Caves | Found Alien Artifact 19618 | -4/Upper Caves | Identified Core Expander 19618 | -4/Upper Caves | Installed Core Expander, added new Weapon slot 19687 | -4/Upper Caves | Entered Warlord 19772 | -4/Warlord | Opened Warlord's prototype stash 19774 | -4/Warlord | Found Prototype Device 19774 | -4/Warlord | Identified Exp. Phase Shifter 19834 | -4/Warlord | Rebuked by Warlord 19853 | -4/Warlord | Visited the Vortex Lab 19854 | -4/Warlord | Warlord's base attacked by MAIN.C 19855 | -4/Warlord | Found Prototype Energy Cannon 19855 | -4/Warlord | Identified Vortex Driver 20078 | -4/Warlord | Lost 3 allies 20086 | -4/Warlord | Warlord forces counterattacked 20086 | -4/Warlord | Spotted B-90 Cyclops 20163 | -4/Warlord | Opened side exit 20168 | -4/Warlord | Discovered new exit (range 9) 20169 | -4/Warlord | Identified exit to Proximity Caves 20169 | -4/Warlord | Entered Proximity Caves 20183 | -3/Proximity Caves | Found DCF Scrap (17 items) 20197 | -3/Proximity Caves | Lost 10 allies 20553 | -3/Proximity Caves | Discovered new exit (range 6) 20554 | -3/Proximity Caves | Identified exit to Research 20554 | -3/Proximity Caves | Entered Research 20554 | -3/Research | Evolved 2 slots: Propulsion x1, Utility x1 20555 | -3/Research | Identified exit to Testing 20556 | -3/Research | Identified exit to Research 20557 | -3/Research | Loaded intel: 105 machine locations 20648 | -3/Research | Repaired Lrn. Sensor Array 20802 | -3/Research | Fabricated Lrg. Storage Unit? 20980 | -3/Research | Entered Testing 21003 | -3/Testing | Spotted Superbehemoth 21057 | -3/Testing | Protovariant out of control (PX-L4KGGWSON6) 21073 | -3/Testing | Garrison activated, responded to threat 21084 | -3/Testing | Repaired Imp. Transmission Jammer 21112 | -3/Testing | Discovered exit to Research (range 21) 21204 | -3/Testing | Found Prototype Device 21219 | -3/Testing | Identified AEGIS Remote Shield 21223 | -3/Testing | Found Prototype Energy Cannon 21240 | -3/Testing | Entered Research 21240 | -2/Research | Evolved 2 slots: Propulsion x1, Utility x1 21347 | -2/Research | Discovered new exit (range 18) 21362 | -2/Research | Identified exit to Access 21363 | -2/Research | Destroyed 9 combat bots 21409 | -2/Research | Build established: Hacker-Ninja 21446 | -2/Research | Spotted B-90 Cyclops 21542 | -2/Research | Identified exit to Quarantine 21630 | -2/Research | Entered Quarantine 21644 | -2/Quarantine | Found Alien Artifact 21656 | -2/Quarantine | Found Alien Artifact 21657 | -2/Quarantine | Identified Dimensional Node Initializer 21657 | -2/Quarantine | Initialized slip node 21660 | -2/Quarantine | Found Dimensional Node Initializer 21719 | -2/Quarantine | Cryocooling Duct disabled 21734 | -2/Quarantine | Ambient heat levels rising (+20) 21734 | -2/Quarantine | Non-combat units ordered to evacuate 21736 | -2/Quarantine | Identified Potential Cannon 21811 | -2/Quarantine | Repaired Lrn. Sensor Array 21936 | -2/Quarantine | Found Alien Artifact 21936 | -2/Quarantine | Identified Core Reset Matrix 21936 | -2/Quarantine | Identified Hpw. Transdimensional Reconstructor 21936 | -2/Quarantine | Used Core Reset Matrix 21940 | -2/Quarantine | Detected hypermatrix surge 21940 | -2/Quarantine | Sensed 14 artifacts in vicinity 21985 | -2/Quarantine | Found Terrabomb 21990 | -2/Quarantine | Found Terrabomb 22024 | -2/Quarantine | Found Subatomic Replicator 22033 | -2/Quarantine | Spotted Fortress 22048 | -2/Quarantine | Discovered new exit (range 6) 22048 | -2/Quarantine | Discovered new exit (range 6) 22049 | -2/Quarantine | Identified exit to Protoforge 22054 | -2/Quarantine | Entered Protoforge 22055 | -2/Protoforge | Sensed 2 artifacts in vicinity 22115 | -2/Protoforge | Discovered exit to Access (range 5) 22117 | -2/Protoforge | Superfortress began startup sequence 22119 | -2/Protoforge | Spotted Hotshot 22120 | -2/Protoforge | Spotted Hotshot 22137 | -2/Protoforge | Spotted Hotshot 22139 | -2/Protoforge | Spotted Hotshot 22154 | -2/Protoforge | Found Prototype Storage 22154 | -2/Protoforge | Identified Cep. Chromion Battery 22165 | -2/Protoforge | Used Terrabomb 22165 | -2/Protoforge | Additional patrols dispatched to research labs 22169 | -2/Protoforge | Spotted Immortal 22170 | -2/Protoforge | Spotted Immortal 22192 | -2/Protoforge | Found Prototype Device 22207 | -2/Protoforge | Spotted Decapitator 22207 | -2/Protoforge | Spotted Decapitator 22207 | -2/Protoforge | Spotted Decapitator 22207 | -2/Protoforge | Spotted Decapitator 22222 | -2/Protoforge | Destroyed Decapitator 22226 | -2/Protoforge | Destroyed Decapitator 22226 | -2/Protoforge | Destroyed Decapitator 22240 | -2/Protoforge | Destroyed Decapitator 22255 | -2/Protoforge | Identified Crosscalibrator 22291 | -2/Protoforge | Lost 3 parts (2n1u) 22297 | -2/Protoforge | Found Cep. Fieldthrust Drive 22298 | -2/Protoforge | Spotted V156-q 22298 | -2/Protoforge | Spotted V625-e 22298 | -2/Protoforge | Spotted V532-h 22306 | -2/Protoforge | Spotted Decapitator 22306 | -2/Protoforge | Spotted Decapitator 22306 | -2/Protoforge | Spotted Decapitator 22319 | -2/Protoforge | Spotted V288-b 22319 | -2/Protoforge | Spotted V811-g 22319 | -2/Protoforge | Spotted V817-d 22326 | -2/Protoforge | Found Faulty Exp. Terror Saw 22334 | -2/Protoforge | Found Exp. Jetlance 22343 | -2/Protoforge | Spotted Decapitator 22343 | -2/Protoforge | Spotted Decapitator 22366 | -2/Protoforge | Destroyed Decapitator 22392 | -2/Protoforge | Found Femtoactuators 22433 | -2/Protoforge | Core integrity fell below 50% 22450 | -2/Protoforge | Core integrity fell below 20% 22459 | -2/Protoforge | Destroyed by Hotshot with Improved Heavy Laser Last Messages --------------- Impact Weapon. 22451_ Penetrated by Slug. 22452_ V817-d deflected attack with Prototype Impact Weapon. 22452_ Slug penetrates Reinforced Barrier. 22452_ Triggered Stasis Trap. 22452_ A bubble of rippling energy engulfs the area. 22452_ Field strength at 93. 22453_ Field strength at 80. 22454_ Field strength at 73. 22455_ Exp. Optical Array destroyed. 22455_ System corrupted by crushing effect (+2). 22455_ Field strength at 48. 22455_ Penetrated by Slug. 22455_ Adv. Hacking Suite destroyed. 22456_ Field strength at 12. 22457_ Penetrated by Slug. 22457_ Stasis field depleted. 22457_ Knocked back. Map ----- +----------------------------------------------------+ | ???????????????????????## #????????????????????? | | ???????????????????????## #????????????????????? | | ???????????????????????## ##???????????????????? | | ??????"""""""??????????## ##???????????????????? | | ?????? ] ??????????## ##???????????????????? | | ???##" ??????????## ##???????????????????? | | ???"###""""""??????????## ##???????????????????? | | ??? # ??????????## ##???????????????????? | | ??? # ??????????## ##???????????????????? | | ????? "??????????## ##?????##?##?????###"" | | ?????? ???????????## ##?????# # #?????# | | ?????? ???????????## ### #### ####### | | ?????? ???????????## ######### ######## | | ??????? ???????????## % | | ??????? ???????????## | | ??????? ???????????## ########### #"" | | ???????? ???????????## ########### "%""#"" | | ## ? ###????## ##????????#########""" | | ####++### ##?#+###????## ##?????????????###" ! | | ##" # #"? "##????## ##???????????????#"! | | ##" # #"" "##????## ##???????????????#"""" | | ##" " " ####????## ##???????????????##### | | ##" " " ##?????## gV##???????????????????? | | ##" " " ##?????## ##???????????????????? | | ##" " " ####????## ##???????????????????? | | ##" " ""# # " "##????##@ ##?????????????####### | | ##"""??"# #"""""##????## ##?????????????####### | | ####???## ########????## ##?????????????##""""" | | ####???## ########????## ##?????????????##"]/[/ | | ???????## ##??????????## ##?????????????##"/[[[ | | ???????## ##??????????##V ##?????????????######" | | ???????## ##??????????##n n##?????????????####"" | | ???????## ##??????????## n ###################"" | | ???????## ##??????????## ################### | | ######### ##??????????## | | ######### ###?????????## | | ###?????????## V#########++######## | | ##?????????## #######" # | | ##?????????## ##???##" " | | ##### ######?????????## ##???##" " " " | | ##### ######?????????## ##???##"""""""# " | | ##?## ##?????????????## ##???########## #### | | ##?## ##?????????????## ##???################# | | ##?## ##?????????????## ##???????????#######?? | | ##?## ##?????????????## ##???????????????????? | | ##?## ################# ##???????????????????? | | ##?##^ ##############"## ##???????????????????? | | ##?## ##???????????????????? | | ???## ##???????????????????? | | ???## ##???????????????????? | +----------------------------------------------------+ Best States ------------- Heat Dissipation 75 Energy Generation 45 Energy Capacity 1080 Matter Stores 300 Matter Capacity 300 Sight Range 23 Robot Scan Range 18 Terrain Scan Density 10 ECM Strength 1 Jamming Range 14 Base Temperature (-) 100 Armor Coverage 225 Utility Shielding 66 Melee Speed Boost 50 Evasion (%) 77 Targeting Accuracy 6 Recoil Reduction 3 Salvage Targeting 1 Offensive Hacking 14 Defensive Hacking 16 Item Schematics ----------------- Hds. Centrium Leg | -2/Protoforge | Archive Exp. Thermal Shield | -2/Protoforge | Archive Exp. Matter Compressor | -2/Protoforge | Archive Robot Schematics ------------------ None Fabricated ------------ Lgt. Regenerative Plating | x1 | -5/Factory Lrg. Storage Unit | x1 | -3/Research Repaired ---------- Aluminum Leg | 34% | -10/Materials Huge Storage Unit | 67% | -9/Materials Imp. Medium Laser | 35% | -9/Materials Cooling System | 58% | -9/Materials Cryofiber Web | 80% | -8/Materials Imp. Treads | 29% | -8/Materials | Broken Arm. Treads | 64% | -8/Materials Arm. Treads | 57% | -8/Storage Arm. Treads | 22% | -8/Storage Arm. Treads | 27% | -8/Storage Imp. VTOL Module | 34% | -5/Factory | Broken Lrn. Missile Launcher | 18% | -5/Factory Lrn. Sensor Array | 18% | -3/Research Imp. Transmission Jammer | 16% | -3/Testing Lrn. Sensor Array | 18% | -2/Quarantine Alien Tech Used ----------------- Integrated Dissipator Core Expander Dimensional Node Initializer Core Reset Matrix Terrabomb Achievements -------------- None Challenges ------------ None Game ------ Seed VortexAntimatterInterrupter Manual? 0 Play Time 05:20:52 Cumulative 78.3 hours Start 2025.05.11 @ 15:11:23 End 2025.05.11 @ 23:29:09 Sessions 3 Manual Loads 0 Difficulty Rogue Special Mode None Game No. 19 Rogue 19 Adventurer 0 Explorer 0 Win Type - Total 5 Types 0/0/3/0/0/0/2/0/0/0 Lore% 45 Gallery% 48 Achievement% 64 Wizard Run 0 Options --------- Layout 1 ASCII 0 Keyboard 0 Movement Arrows Keybinds 0 Fullscreen 2 Font 24/Terminus Map View 50x35 Zoom Use 0% Tactical HUD 1 Map Filters NONE Filters NONE Steam 1 RUN: b8b3f04e-d635-46fd-8692-9e017a41eb9d